bitfinex/quotes_BTCUSD_20241111
["timestamp","ask_amount","ask_price","bid_price","bid_amount"]
[1731356846740,0.29264834,86900.0,86885.0,0.0781014]
[1731356847633,0.17270759,86909.0,86887.0,0.17270759]
[1731356847634,0.11994075,86899.0,86887.0,0.17270759]
[1731356847853,0.11994075,86899.0,86885.0,0.0017014]
[1731356848527,0.17270759,86898.0,86885.0,0.0017014]
[1731356848753,0.11994075,86897.0,86885.0,0.0017014]
[1731356851384,0.17270759,86896.0,86886.0,0.01148632]
[1731356851600,0.17270759,86896.0,86887.0,0.01148632]
[1731356851601,0.11994075,86895.0,86887.0,0.01148632]
[1731356851804,0.11994075,86895.0,86885.0,0.0017014]
[1731356851805,0.11994075,86895.0,86888.0,0.01148632]
[1731356852179,0.11994075,86895.0,86889.0,0.01148675]
[1731356852427,0.11994075,86895.0,86890.0,0.01148675]
[1731356852663,0.11994075,86895.0,86891.0,0.01148675]
[1731356852866,0.11994075,86895.0,86892.0,0.01148675]
[1731356853073,0.11994075,86895.0,86893.0,0.01148675]
[1731356853260,0.11994075,86895.0,86894.0,0.01148675]
[1731356853896,0.12494075,86895.0,86894.0,0.00502544]
[1731356854102,0.12494075,86895.0,86886.0,0.0017014]
[1731356859443,0.11994075,86895.0,86886.0,0.0017014]
[1731356860279,0.02009405,86900.0,86886.0,0.0017014]
[1731356860504,0.17270759,86899.0,86886.0,0.0017014]
[1731356860723,0.17270759,86898.0,86886.0,0.0017014]
[1731356861124,0.17270759,86889.0,86886.0,0.0017014]
[1731356861347,0.13201468,86887.0,86886.0,0.0017014]
[1731356861564,0.25195543,86887.0,86886.0,0.0017014]
[1731356861773,0.11994075,86887.0,86886.0,0.0017014]
[1731356862911,0.08202097,86887.0,86886.0,0.0017014]
[1731356863558,0.21403565,86887.0,86886.0,0.0017014]
[1731356863767,0.21903565,86887.0,86886.0,0.0017014]
[1731356863988,0.25031158,86887.0,86886.0,0.0017014]
[1731356864605,0.21903565,86887.0,86886.0,0.0017014]
[1731356864829,0.23888944,86887.0,86886.0,0.0017014]
[1731356865083,0.23736236,86887.0,86886.0,0.0007014]
[1731356865881,0.26863829,86887.0,86886.0,0.0007014]
[1731356866293,0.13662361,86887.0,86886.0,0.0007014]
[1731356866547,0.10034768,86887.0,86886.0,0.0007014]
[1731356869787,0.05148413,86918.0,86886.0,0.0007014]
[1731356870014,0.05148413,86918.0,86900.0,0.1]
[1731356870180,0.17270759,86914.0,86905.0,0.1]
[1731356870403,0.05148413,86918.0,86906.0,0.1]
[1731356870604,0.05148413,86918.0,86907.0,0.01148671]
[1731356870988,0.0428405,86917.0,86908.0,0.01148671]
[1731356871202,0.05148413,86918.0,86909.0,0.11148671]
[1731356872405,0.12079145,86910.0,86909.0,0.01148671]
[1731356872604,0.12079145,86910.0,86909.0,0.01406122]
[1731356873120,0.12079145,86910.0,86909.0,0.01148671]
[1731356873319,0.12079145,86910.0,86909.0,0.01405698]
[1731356874280,0.12079145,86910.0,86909.0,0.01148342]
[1731356874554,0.12079145,86910.0,86909.0,0.01405698]
[1731356875981,0.12079145,86910.0,86909.0,0.01148342]
[1731356876811,0.12579145,86910.0,86909.0,0.0114844]
[1731356877018,0.12579145,86910.0,86902.0,0.0114844]
[1731356877235,0.005,86903.0,86897.0,0.00257031]
[1731356877455,0.11137775,86902.0,86898.0,0.17270759]
[1731356877669,1.5,86901.0,86891.0,0.01148538]
[1731356877894,0.11994075,86900.0,86892.0,0.01148538]
[1731356878064,0.11994075,86900.0,86886.0,0.0007014]
[1731356878065,0.11994075,86900.0,86893.0,0.01148538]
[1731356878242,0.11994075,86900.0,86888.0,0.00257031]
[1731356878243,0.11994075,86900.0,86894.0,0.01148538]
[1731356878446,0.11994075,86900.0,86895.0,0.01148538]
[1731356878662,0.11994075,86900.0,86890.0,0.01148538]
[1731356878938,1.5,86899.0,86891.0,0.01148538]
[1731356879116,1.5,86899.0,86886.0,0.00327171]
[1731356879117,0.11994075,86898.0,86892.0,0.01148538]
[1731356879368,0.11994075,86898.0,86886.0,0.00327171]
[1731356879369,0.11994075,86898.0,86893.0,0.01148538]
[1731356879580,0.11994075,86898.0,86894.0,0.01148538]
[1731356879784,0.11994075,86898.0,86895.0,0.01148538]
[1731356880010,0.11994075,86898.0,86896.0,0.01148538]
[1731356880207,0.11994075,86898.0,86889.0,0.17270759]
[1731356880321,0.11994075,86898.0,86897.0,0.01148581]
[1731356880958,0.11994075,86898.0,86889.0,0.00257214]
[1731356881169,0.25195543,86890.0,86886.0,0.0007014]
[1731356881375,0.005,86887.0,86886.0,0.0007014]
[1731356881645,1.5,86887.0,86886.0,0.0007014]
[1731356882862,1.63980944,86887.0,86886.0,0.0007014]
[1731356883093,0.001702,86900.0,86887.0,0.0763]
[1731356883307,0.001702,86900.0,86894.0,0.00257531]
[1731356883517,0.11994075,86899.0,86892.0,0.00257531]
[1731356883729,0.11994075,86899.0,86893.0,0.00257531]
[1731356883957,0.11994075,86899.0,86887.0,0.00257531]
[1731356884156,0.11994075,86899.0,86891.0,0.17270759]
[1731356884380,0.11994075,86899.0,86888.0,0.00257531]
[1731356884820,0.11994075,86899.0,86886.0,0.0007014]
[1731356885267,0.13201468,86894.0,86886.0,0.0007014]
[1731356885483,0.11994075,86893.0,86886.0,0.0007014]
[1731356885902,0.11994075,86889.0,86886.0,0.0007014]
[1731356886157,0.11994075,86889.0,86845.0,0.0507656]
[1731356886158,0.005,86854.0,86845.0,0.0507656]
[1731356886360,0.005,86860.0,86819.0,0.0507656]
[1731356886572,0.03644654,86854.0,86846.0,0.17441039]
[1731356886789,0.005,86858.0,86846.0,0.0017028]
[1731356887408,0.25695543,86854.0,86846.0,0.0017028]
[1731356887611,0.12494075,86854.0,86846.0,0.0017028]
[1731356887835,1.65858519,86854.0,86846.0,0.0017028]
[1731356888255,0.17270759,86873.0,86846.0,0.0017028]
[1731356888256,0.005,86876.0,86847.0,0.0759]
[1731356888477,0.17270759,86862.0,86847.0,0.0759]
[1731356888681,0.19330028,86871.0,86847.0,0.0759]
[1731356888682,0.11994075,86861.0,86847.0,0.0759]
[1731356888901,0.17270759,86860.0,86846.0,0.0017028]
[1731356889166,0.11994075,86859.0,86846.0,0.0017028]
[1731356891286,0.11994075,86859.0,86854.0,0.00718252]
[1731356891485,0.13201468,86857.0,86846.0,0.0017028]
[1731356891805,0.11994075,86856.0,86846.0,0.0017028]
[1731356893643,0.11994075,86856.0,86853.0,0.0017022]
[1731356895249,0.17270759,86855.0,86853.0,0.0017022]
[1731356895454,0.11994075,86854.0,86853.0,0.0017022]
[1731356899587,0.25195543,86854.0,86853.0,0.0017022]
[1731356899795,0.11994075,86854.0,86853.0,0.0017022]
[1731356900207,1.61994075,86854.0,86853.0,0.0017022]
[1731356901608,1.82048897,86854.0,86853.0,0.0017022]
[1731356901808,1.78923955,86854.0,86853.0,0.0017022]
[1731356902011,1.78423955,86854.0,86853.0,0.0017022]
[1731356902212,1.78923955,86854.0,86853.0,0.0017022]
[1731356903764,1.78923955,86854.0,86848.0,0.00718379]
[1731356903765,0.03728412,86853.0,86848.0,0.00718379]
[1731356903969,0.03728412,86853.0,86835.0,0.17270759]
[1731356903970,0.11994075,86852.0,86835.0,0.17270759]
[1731356904177,0.03228412,86851.0,86836.0,0.01149402]
[1731356904424,0.11994075,86850.0,86836.0,0.01149402]
[1731356904846,0.11994075,86850.0,86837.0,0.01149402]
[1731356905058,0.11994075,86850.0,86833.0,0.01149402]
[1731356905296,0.11994075,86850.0,86834.0,0.01149402]
[1731356905498,0.11994075,86850.0,86829.0,0.0785]
[1731356905499,0.11994075,86850.0,86829.0,0.06412319]
[1731356905720,0.11994075,86850.0,86829.0,0.06641643]
[1731356906239,0.11994075,86850.0,86829.0,0.06412319]
[1731356906444,0.11994075,86850.0,86829.0,0.02412319]
[1731356907411,1.5,86849.0,86829.0,0.02412319]
[1731356907630,0.11994075,86848.0,86829.0,0.02412319]
[1731356908287,1.5,86847.0,86829.0,0.02412319]
[1731356908489,0.11994075,86846.0,86833.0,0.1]
[1731356908700,0.11886376,86846.0,86833.0,0.1]
[1731356908920,0.17270759,86845.0,86833.0,0.1]
[1731356909123,0.11994075,86851.0,86833.0,0.1]
[1731356909354,0.11994075,86851.0,86829.0,0.02412319]
[1731356909355,0.17270759,86850.0,86840.0,0.005]
[1731356909574,0.17270759,86850.0,86841.0,0.0143641]
[1731356909778,0.17270759,86850.0,86842.0,0.0143641]
[1731356909975,0.17270759,86850.0,86837.0,0.0469]
[1731356909976,0.17270759,86850.0,86843.0,0.0143641]
[1731356910171,0.11994075,86861.0,86844.0,0.0143641]
[1731356910423,0.11994075,86861.0,86822.0,0.17441059]
[1731356910424,0.17270759,86853.0,86845.0,0.0143641]
[1731356910598,0.13201468,86855.0,86850.0,0.00229872]
[1731356910599,0.11994075,86852.0,86850.0,0.00229872]
[1731356910802,0.11994075,86852.0,86851.0,0.0143641]
[1731356911587,0.0829,86869.0,86851.0,0.01666451]
[1731356911804,0.30472227,86871.0,86832.0,0.1]
[1731356911805,0.13201468,86856.0,86852.0,0.01436524]
[1731356912053,0.13201468,86856.0,86850.0,0.0022998]
[1731356912054,0.005,86853.0,86850.0,0.0022998]
[1731356912278,0.1314,86855.0,86815.0,0.0017032]
[1731356912279,0.005,86836.0,86815.0,0.0017032]
[1731356912503,0.0829,86839.0,86815.0,0.0017032]
[1731356912504,0.13201468,86825.0,86815.0,0.0017032]
[1731356913144,0.005,86831.0,86815.0,0.0017032]
[1731356913145,0.11994075,86824.0,86815.0,0.0017032]
[1731356913391,0.023,86823.0,86815.0,0.0017032]
[1731356913611,0.023,86821.0,86815.0,0.0017032]
[1731356913817,0.0829,86839.0,86815.0,0.0017032]
[1731356914003,0.023,86832.0,86822.0,0.0008523]
[1731356914175,0.11994075,86831.0,86822.0,0.0008523]
[1731356914613,0.023,86830.0,86822.0,0.0008523]
[1731356914781,0.023,86828.0,86822.0,0.0008523]
[1731356914989,0.11994075,86827.0,86822.0,0.0008523]
[1731356915673,0.11994075,86827.0,86823.0,0.01149609]
[1731356915906,0.11994075,86827.0,86822.0,0.0008523]
[1731356915907,0.11994075,86827.0,86824.0,0.01149609]
[1731356916111,0.11994075,86827.0,86825.0,0.01868115]
[1731356916313,0.14294075,86827.0,86826.0,0.01868115]
[1731356916530,0.16315811,86827.0,86826.0,0.01868115]
[1731356917096,0.16315811,86827.0,86822.0,0.0008523]
[1731356917097,0.023,86826.0,86822.0,0.0008523]
[1731356917320,0.11994075,86825.0,86822.0,0.0008523]
[1731356917526,0.11994075,86825.0,86808.0,0.1]
[1731356917527,0.023,86824.0,86808.0,0.1]
[1731356917678,0.11994075,86823.0,86808.0,0.1]
[1731356918472,0.11994075,86823.0,86802.0,0.0017032]
[1731356919895,0.023,86813.0,86802.0,0.0017032]
[1731356920062,0.023,86813.0,86803.0,0.01437046]
[1731356920063,0.11994075,86812.0,86803.0,0.01437046]
[1731356920314,0.11994075,86812.0,86802.0,0.0017032]
[1731356920315,0.023,86811.0,86804.0,0.01437046]
[1731356920513,0.11994075,86810.0,86802.0,0.0017032]
[1731356920730,0.11994075,86811.0,86802.0,0.0017032]
[1731356924660,0.17270759,86824.0,86802.0,0.0017032]
[1731356924864,0.0732968,86800.0,86799.0,0.0867512]
[1731356925098,0.0732968,86800.0,86799.0,0.1867512]
[1731356925301,0.19323755,86800.0,86799.0,0.1059512]
[1731356926142,0.19323755,86800.0,86799.0,0.0059512]
[1731356927084,0.19323755,86800.0,86799.0,0.01744852]
[1731356928550,0.0732968,86800.0,86799.0,0.01744852]
[1731356928748,0.0732968,86800.0,86799.0,0.01244852]
[1731356929155,0.0732968,86800.0,86799.0,0.01963414]
[1731356931542,0.0732968,86800.0,86799.0,0.00013414]
[1731356931704,0.0732968,86800.0,86799.0,0.10013414]
[1731356932763,0.0732968,86800.0,86798.0,0.0017032]
[1731356934138,0.0732968,86800.0,86799.0,0.0807]
[1731356934341,0.0732968,86800.0,86799.0,0.34384075]
[1731356934544,0.0732968,86800.0,86798.0,0.0017032]
[1731356937409,0.0732968,86800.0,86799.0,0.21994075]
[1731356937609,0.0732968,86800.0,86799.0,0.2552325]
[1731356938603,0.0732968,86800.0,86799.0,0.2572325]
[1731356938884,0.0732968,86800.0,86799.0,0.3864325]
[1731356939033,0.0732968,86800.0,86799.0,0.3844325]
[1731356939416,0.0732968,86800.0,86799.0,0.3864325]
[1731356939626,0.0732968,86800.0,86799.0,0.4232722]
[1731356940873,0.0732968,86800.0,86799.0,0.50154109]
[1731356941070,0.17270759,86849.0,86821.0,0.007]
[1731356941272,0.17270759,86849.0,86823.0,0.105]
[1731356941474,0.17270759,86849.0,86823.0,0.34349241]
[1731356941722,0.17270759,86849.0,86828.0,0.005]
[1731356941928,0.17270759,86849.0,86829.0,0.01149234]
[1731356942074,0.17270759,86849.0,86830.0,0.01149234]
[1731356942294,0.17270759,86849.0,86831.0,0.01149234]
[1731356942295,0.17270759,86833.0,86831.0,0.01149234]
[1731356942500,0.11994075,86832.0,86814.0,0.02003601]
[1731356942710,0.11994075,86832.0,86813.0,0.005]
[1731356942711,0.11994075,86832.0,86826.0,0.1]
[1731356942933,0.11994075,86832.0,86827.0,0.01149197]
[1731356943130,0.11994075,86832.0,86828.0,0.01149197]
[1731356943351,0.11994075,86832.0,86829.0,0.01149197]
[1731356943617,0.11994075,86832.0,86830.0,0.01867522]
[1731356943809,0.17270759,86846.0,86831.0,0.01867522]
[1731356944052,0.11994075,86845.0,86837.0,0.00212446]
[1731356944265,0.0487046,86856.0,86838.0,0.01867522]
[1731356944462,0.17270759,86851.0,86839.0,0.01867522]
[1731356944665,0.17270759,86851.0,86841.0,0.00212446]
[1731356944666,0.11994075,86850.0,86841.0,0.00212446]
[1731356944942,0.02107837,86853.0,86847.0,0.00212446]
[1731356944943,0.001027,86853.0,86847.0,0.00212446]
[1731356945140,0.001027,86853.0,86833.0,0.1769]
[1731356945141,0.001027,86853.0,86849.0,0.00212446]
[1731356945394,0.001027,86853.0,86850.0,0.01867522]
[1731356945395,0.11994075,86852.0,86850.0,0.01867522]
[1731356945610,0.11994075,86852.0,86851.0,0.01867522]
[1731356948178,0.001027,86853.0,86851.0,0.01867522]
[1731356948388,0.001027,86853.0,86852.0,0.00718325]
[1731356949083,0.001027,86853.0,86852.0,0.01867522]
[1731356949636,0.001027,86853.0,86852.0,0.09557522]
[1731356950857,0.001027,86853.0,86852.0,0.31551597]
[1731356951487,0.001027,86853.0,86852.0,0.19557522]
[1731356951701,0.001027,86853.0,86852.0,0.21554903]
[1731356952217,0.001027,86853.0,86852.0,0.19557522]
[1731356952462,0.001027,86853.0,86852.0,0.01867522]
[1731356952665,0.001027,86853.0,86832.0,0.17270759]
[1731356952666,0.30228243,86853.0,86832.0,0.17270759]
[1731356952877,0.0772,86851.0,86841.0,0.17270759]
[1731356953100,0.0772,86851.0,86818.0,0.17270759]
[1731356953101,0.005,86840.0,86818.0,0.17270759]
[1731356953325,0.13201468,86842.0,86830.0,0.17270759]
[1731356953569,0.13201468,86842.0,86818.0,0.17270759]
[1731356953570,0.17270759,86840.0,86820.0,0.00204883]
[1731356953793,0.17770759,86840.0,86820.0,0.00204883]
[1731356953998,0.17770759,86840.0,86818.0,0.17270759]
[1731356953999,0.11994075,86840.0,86827.0,0.17270759]
[1731356954155,0.24990759,86851.0,86819.0,0.00435605]
[1731356954367,0.11994075,86850.0,86820.0,0.13701468]
[1731356954562,0.17270759,86842.0,86835.0,0.00205477]
[1731356954974,0.11994075,86850.0,86838.0,0.00205477]
[1731356955184,0.11994075,86850.0,86839.0,0.00205477]
[1731356955883,0.17270759,86849.0,86840.0,0.00205477]
[1731356956102,0.11994075,86848.0,86839.0,0.00205477]
[1731356956656,0.11994075,86848.0,86840.0,0.00205477]
[1731356957166,0.11994075,86848.0,86841.0,0.00205477]
[1731356958182,0.11994075,86848.0,86842.0,0.00205477]
[1731356958947,0.0036,86852.0,86843.0,0.17270759]
[1731356959177,0.0036,86852.0,86834.0,0.1]
[1731356959178,0.0036,86852.0,86849.0,0.00205477]
[1731356959375,0.0036,86852.0,86838.0,0.00230286]
[1731356959643,0.0036,86852.0,86843.0,0.1]
[1731356960579,0.0036,86852.0,86839.0,0.005]
[1731356961154,0.002077,86852.0,86839.0,0.005]
[1731356961543,0.001705,86848.0,86839.0,0.005]
[1731356962094,0.11994075,86847.0,86834.0,0.02029569]
[1731356962291,0.001705,86848.0,86841.0,0.17270759]
[1731356962477,0.001705,86848.0,86834.0,0.005]
[1731356962683,0.001705,86848.0,86835.0,0.01149159]
[1731356962891,0.001705,86848.0,86836.0,0.01149159]
[1731356962892,0.023,86844.0,86836.0,0.01149159]
[1731356963096,0.005,86830.0,86814.0,0.17270759]
[1731356963312,0.17270759,86829.0,86826.0,0.00206126]
[1731356963741,0.17270759,86829.0,86823.0,0.00206126]
[1731356963947,0.005,86838.0,86823.0,0.00206126]
[1731356964157,0.005,86838.0,86825.0,0.00206126]
[1731356964158,0.17270759,86835.0,86825.0,0.00206126]
[1731356964368,0.17270759,86835.0,86822.0,0.00230329]
[1731356964594,0.17270759,86835.0,86828.0,0.00206134]
[1731356964795,0.17270759,86835.0,86831.0,0.00206134]
[1731356965020,0.17270759,86835.0,86822.0,0.00230329]
[1731356965021,0.17270759,86835.0,86832.0,0.0092438]
[1731356965228,0.17270759,86835.0,86833.0,0.00718246]
[1731356965466,0.005,86838.0,86834.0,0.00718246]
[1731356965642,0.005,86838.0,86835.0,0.00718246]
[1731356965860,0.00230353,86843.0,86836.0,0.00718246]
[1731356966066,0.00730353,86847.0,86837.0,0.00718246]
[1731356966290,0.00730353,86847.0,86838.0,0.00718246]
[1731356966611,0.00730353,86847.0,86839.0,0.00718246]
[1731356966927,0.002,86846.0,86840.0,0.00718246]
[1731356967107,0.00230353,86845.0,86841.0,0.00718246]
[1731356967325,0.00230353,86845.0,86842.0,0.00718246]
[1731356967537,0.00230353,86845.0,86835.0,0.00206134]
[1731356967538,0.00230353,86845.0,86843.0,0.00718246]
[1731356967748,0.00230353,86845.0,86844.0,0.00718246]
[1731356968780,0.00230353,86846.0,86844.0,0.00718246]
[1731356968977,0.00230353,86846.0,86845.0,0.00718246]
[1731356969431,0.001705,86848.0,86845.0,0.00718246]
[1731356969648,0.001705,86848.0,86847.0,0.00206134]
[1731356969811,0.001705,86848.0,86847.0,0.43863789]
[1731356970021,0.001705,86848.0,86847.0,0.45925198]
[1731356970223,0.002077,86852.0,86848.0,0.1]
[1731356970504,0.002077,86852.0,86851.0,0.11994075]
[1731356970682,0.0462,86899.0,86877.0,0.52319241]
[1731356970900,0.005,86902.0,86879.0,0.23201468]
[1731356971186,0.005,86902.0,86879.0,0.23919714]
[1731356971417,0.005,86885.0,86879.0,0.10718246]
[1731356971603,0.00730353,86885.0,86880.0,0.1]
[1731356971819,0.00730353,86885.0,86881.0,0.00718246]
[1731356971972,0.00730353,86885.0,86882.0,0.00718246]
[1731356972182,0.005,86885.0,86883.0,0.00718246]
[1731356972397,0.12494075,86885.0,86884.0,0.00718246]
[1731356973236,0.12494075,86885.0,86884.0,0.0186681]
[1731356973685,0.12864475,86885.0,86884.0,0.0186681]
[1731356974527,0.12894828,86885.0,86884.0,0.0186681]
[1731356974887,0.13094828,86885.0,86884.0,0.0186681]
[1731356975650,0.12894828,86885.0,86884.0,0.0186681]
[1731356976370,0.12894828,86885.0,86884.0,0.02060778]
[1731356976574,0.00900753,86885.0,86884.0,0.0186681]
[1731356976988,0.01100753,86885.0,86884.0,0.0186681]
[1731356977196,0.00900753,86885.0,86884.0,0.0186681]
[1731356977764,0.005,86863.0,86862.0,0.02010426]
[1731356978130,0.005,86863.0,86830.0,0.11333588]
[1731356978131,0.005,86856.0,86844.0,0.01986871]
[1731356978247,0.005,86845.0,86844.0,0.01986871]
[1731356978617,0.005,86845.0,86844.0,0.01866914]
[1731356978789,0.12224428,86855.0,86844.0,0.01866914]
[1731356978790,0.005,86850.0,86844.0,0.01866914]
[1731356978989,0.005,86850.0,86845.0,0.01866914]
[1731356979194,0.005,86850.0,86846.0,0.01866914]
[1731356979543,0.005,86850.0,86847.0,0.01866914]
[1731356979753,0.002,86849.0,86848.0,0.01866914]
[1731356980006,0.005,86850.0,86848.0,0.01866914]
[1731356980182,0.005,86850.0,86849.0,0.01866914]
[1731356980624,0.02496535,86863.0,86849.0,0.01866914]
[1731356980833,0.02496535,86863.0,86851.0,0.1]
[1731356980834,0.17270759,86860.0,86851.0,0.1]
[1731356981061,0.17270759,86860.0,86852.0,0.0114887]
[1731356981295,0.17270759,86860.0,86851.0,0.1]
[1731356981296,0.17270759,86860.0,86853.0,0.0114887]
[1731356981523,0.17270759,86872.0,86854.0,0.0114887]
[1731356981750,0.17270759,86863.0,86855.0,0.13742542]
[1731356981957,0.17270759,86872.0,86856.0,0.11994075]
[1731356982163,0.17270759,86872.0,86857.0,0.10230225]
[1731356982377,0.005,86865.0,86858.0,0.0114887]
[1731356982579,0.002,86881.0,86860.0,0.1]
[1731356982580,0.005,86881.0,86860.0,0.1]
[1731356982814,0.17270759,86872.0,86862.0,0.1]
[1731356983014,0.005,86881.0,86863.0,0.0114887]
[1731356983222,0.005,86881.0,86862.0,0.1]
[1731356983223,0.17270759,86875.0,86864.0,0.0114887]
[1731356983427,0.001704,86885.0,86866.0,0.1]
[1731356983635,0.001704,86885.0,86864.0,0.19991917]
[1731356983636,0.17270759,86879.0,86868.0,0.1]
[1731356983899,0.17270759,86879.0,86870.0,0.1]
[1731356984106,0.17270759,86879.0,86871.0,0.01379069]
[1731356984310,0.001704,86885.0,86872.0,0.0114887]
[1731356984522,0.17270759,86880.0,86873.0,0.1114887]
[1731356984694,0.001704,86885.0,86875.0,0.1]
[1731356984914,0.001704,86885.0,86877.0,0.1]
[1731356985156,0.001704,86885.0,86878.0,0.0114887]
[1731356985362,0.001704,86885.0,86879.0,0.0114887]
[1731356985503,0.001704,86885.0,86880.0,0.0114887]
[1731356985700,0.001704,86885.0,86877.0,0.21994075]
[1731356985701,0.001704,86885.0,86881.0,0.0114887]
[1731356985902,0.001704,86885.0,86882.0,0.0114887]
[1731356986111,0.001704,86885.0,86883.0,0.0114887]
[1731356986338,0.001704,86885.0,86884.0,0.23373117]
[1731356986550,0.001704,86885.0,86884.0,0.23142945]
[1731356987929,0.001704,86885.0,86884.0,0.0114887]
[1731356989200,0.12894828,86885.0,86884.0,0.0114887]
[1731356989376,0.13594828,86885.0,86884.0,0.01342032]
[1731356989598,0.13594828,86885.0,86884.0,0.0114887]
[1731356989815,0.01,86884.0,86883.0,0.00193171]
[1731356990038,0.01,86884.0,86847.0,0.17270759]
[1731356990039,0.005,86868.0,86867.0,0.00193171]
[1731356990232,0.007,86862.0,86861.0,0.00193171]
[1731356990473,0.007,86862.0,86848.0,0.17355939]
[1731356990474,0.002,86858.0,86848.0,0.17355939]
[1731356990683,0.00730353,86857.0,86848.0,0.17355939]
[1731356990892,0.00730353,86857.0,86856.0,0.00193643]
[1731356991305,0.00730353,86857.0,86848.0,0.0008518]
[1731356991782,0.19991917,86869.0,86848.0,0.0008518]
[1731356991783,1.5489,86883.0,86848.0,0.0008518]
[1731356991983,0.17270759,86861.0,86848.0,0.0008518]
[1731356992202,0.01982079,86866.0,86848.0,0.0008518]
[1731356992357,0.17270759,86863.0,86848.0,0.0008518]
[1731356992553,0.29264834,86863.0,86848.0,0.0008518]
[1731356996572,0.11994075,86862.0,86848.0,0.0008518]
[1731356996776,0.0486,86858.0,86848.0,0.0008518]
[1731356997156,0.11994075,86857.0,86848.0,0.0008518]
[1731356998941,1.5486,86858.0,86848.0,0.0008518]
[1731356998942,0.0486,86858.0,86848.0,0.0008518]
[1731356999197,0.17270759,86857.0,86848.0,0.0008518]
[1731357000063,0.17270759,86857.0,86849.0,0.01149067]
[1731357000266,0.0486,86858.0,86848.0,0.0008518]
[1731357000267,0.0486,86858.0,86850.0,0.01149067]
[1731357000467,0.0486,86858.0,86848.0,0.0008518]
[1731357000468,0.17270759,86865.0,86851.0,0.01149067]
[1731357000683,0.17270759,86865.0,86848.0,0.0008518]
[1731357000684,0.17270759,86856.0,86852.0,0.01149067]
[1731357000886,0.29264834,86865.0,86853.0,0.01149067]
[1731357001133,0.29264834,86865.0,86849.0,0.01149067]
[1731357001350,0.19991917,86858.0,86849.0,0.01149067]
[1731357001565,0.11994075,86857.0,86848.0,0.0008518]
[1731357001782,1.5,86856.0,86848.0,0.0008518]
[1731357002012,0.17270759,86854.0,86848.0,0.0008518]
[1731357002233,0.11994075,86853.0,86848.0,0.0008518]
[1731357002599,1.5,86852.0,86848.0,0.0008518]
[1731357002982,1.5,86852.0,86825.0,0.17270759]
[1731357002983,0.005,86837.0,86829.0,0.01149197]
[1731357003174,0.11994075,86836.0,86826.0,0.17270759]
[1731357003300,0.11994075,86836.0,86818.0,0.01149197]
[1731357003504,0.11994075,86836.0,86819.0,0.01149197]
[1731357003707,0.17270759,86835.0,86817.0,0.01149511]
[1731357003917,0.11994075,86834.0,86807.0,0.01149511]
[1731357004190,0.29264834,86833.0,86808.0,0.01149511]
[1731357004370,0.29264834,86833.0,86809.0,0.01149511]
[1731357004573,0.27339522,86833.0,86810.0,0.01149511]
[1731357004745,0.27339522,86833.0,86811.0,0.01149511]
[1731357005155,0.27339522,86833.0,86812.0,0.01149511]
[1731357005402,1.5,86832.0,86800.0,0.01149511]
[1731357005724,1.67270759,86832.0,86807.0,0.1]
[1731357005944,1.67270759,86832.0,86798.0,0.19991917]
[1731357005945,1.67270759,86832.0,86809.0,0.1]
[1731357006161,1.67270759,86832.0,86811.0,0.1]
[1731357006376,1.67270759,86832.0,86813.0,0.1]
[1731357006588,0.17270759,86823.0,86814.0,0.01149511]
[1731357006796,0.17270759,86832.0,86815.0,0.01149511]
[1731357007004,0.17270759,86832.0,86813.0,0.1]
[1731357007005,0.17270759,86832.0,86816.0,0.01149511]
[1731357007232,0.17270759,86832.0,86813.0,0.1]
[1731357007233,0.17270759,86832.0,86817.0,0.01149512]
[1731357007429,0.17270759,86823.0,86818.0,0.01149512]
[1731357007643,0.0792,86826.0,86819.0,0.01149512]
[1731357007851,0.0792,86826.0,86814.0,0.0008518]
[1731357007852,0.11994075,86822.0,86820.0,0.01149512]
[1731357008274,0.11994075,86822.0,86814.0,0.0008518]
[1731357008275,0.03269422,86821.0,86815.0,0.01149512]
[1731357008492,0.12494075,86820.0,86815.0,0.01149512]
[1731357008692,0.12494075,86820.0,86814.0,0.0008518]
[1731357008693,0.11994075,86820.0,86814.0,0.0008518]
[1731357008895,1.61994075,86820.0,86814.0,0.0008518]
[1731357009728,1.65263497,86820.0,86814.0,0.0008518]
[1731357009926,1.61994075,86820.0,86814.0,0.0008518]
[1731357010769,0.005,86811.0,86792.0,0.0143689]
[1731357010982,0.03027577,86819.0,86808.0,0.17270759]
[1731357011198,0.03027577,86819.0,86799.0,0.1]
[1731357011199,0.11994075,86818.0,86799.0,0.1]
[1731357012040,0.17270759,86810.0,86790.0,0.1]
[1731357012255,0.17270759,86809.0,86792.0,0.1]
[1731357012467,0.19277983,86819.0,86793.0,0.01437172]
[1731357012677,0.19277983,86819.0,86792.0,0.1]
[1731357012678,0.17270759,86810.0,86794.0,0.01437172]
[1731357012887,0.11994075,86809.0,86795.0,0.01437172]
[1731357013096,0.16584075,86809.0,86796.0,0.01437172]
[1731357013302,0.16584075,86809.0,86797.0,0.01437172]
[1731357013508,0.16584075,86809.0,86785.0,0.01437172]
[1731357013732,0.16584075,86809.0,86786.0,0.01437172]
[1731357013909,0.17270759,86800.0,86788.0,0.1]
[1731357014126,0.03212142,86808.0,86789.0,0.01437172]
[1731357014361,0.16584075,86809.0,86788.0,0.1]
[1731357014362,0.11994075,86807.0,86788.0,0.1]
[1731357014579,0.17270759,86819.0,86790.0,0.1]
[1731357014821,0.17270759,86808.0,86792.0,0.1]
[1731357015926,0.17270759,86808.0,86793.0,0.01437116]
[1731357016128,0.17270759,86808.0,86794.0,0.01437116]
[1731357016336,0.17270759,86808.0,86795.0,0.01437116]
[1731357016482,0.17270759,86808.0,86796.0,0.01437116]
[1731357016687,0.17270759,86808.0,86797.0,0.01437116]
[1731357016887,0.17270759,86808.0,86784.0,0.000851]
[1731357016888,0.17270759,86808.0,86798.0,0.01437116]
[1731357017112,0.17270759,86808.0,86799.0,0.01437116]
[1731357017326,0.17270759,86808.0,86800.0,0.01437116]
[1731357017475,0.17270759,86808.0,86801.0,0.01437116]
[1731357017688,0.17270759,86808.0,86802.0,0.01437116]
[1731357017894,0.17270759,86808.0,86803.0,0.01437116]
[1731357018154,0.17270759,86808.0,86784.0,0.000851]
[1731357018155,0.023,86808.0,86804.0,0.01437116]
[1731357018373,0.023,86808.0,86805.0,0.01437116]
[1731357018594,0.023,86808.0,86784.0,0.000851]
[1731357018595,0.023,86808.0,86806.0,0.01437116]
[1731357018805,0.023,86808.0,86807.0,0.01437116]
[1731357019211,0.04272333,86808.0,86807.0,0.01437116]
[1731357019887,0.04272333,86808.0,86784.0,0.000851]
[1731357020094,0.21543092,86808.0,86790.0,0.09642]
[1731357020302,0.21543092,86808.0,86804.0,0.0008521]